[Event "*** Titled Tuesday Blitz"]
[Site "Chess.com"]
[Date "2020.05.26"]
[Round "2"]
[White "Tsyhanchuk_Stanislav"]
[Black "DonPreuss"]
[Result "0-1"]
[WhiteElo "2432"]
[BlackElo "2247"]
[TimeControl "180+1"]
[EndTime "10:19:49 PDT"]
[Termination "DonPreuss won by checkmate"]

1. e4 {[%clk 0:03:00.7]} 1... Nc6 {[%clk 0:02:59.2]} 2. Nf3 {[%clk 0:03:00]}
2... d6 {[%clk 0:02:58]} 3. d4 {[%clk 0:02:59]} 3... g6 {[%clk 0:02:58.4]} 4.
Bc4 {[%clk 0:02:55.7]} 4... Bg7 {[%clk 0:02:57]} 5. c3 {[%clk 0:02:55.7]} 5...
e6 {[%clk 0:02:53.4]} 6. O-O {[%clk 0:02:54.3]} 6... Nge7 {[%clk 0:02:53.2]} 7.
Re1 {[%clk 0:02:47.5]} 7... O-O {[%clk 0:02:24.7]} 8. Bg5 {[%clk 0:02:36.3]}
8... f6 {[%clk 0:02:21.6]} 9. Bf4 {[%clk 0:02:19.8]} 9... Kh8 {[%clk 0:01:57]}
10. Nbd2 {[%clk 0:02:12.8]} 10... e5 {[%clk 0:01:53.6]} 11. Bg3 {[%clk
0:02:11.9]} 11... Bg4 {[%clk 0:01:45.4]} 12. h3 {[%clk 0:02:08.1]} 12... Bh5
{[%clk 0:01:45.2]} 13. Qc2 {[%clk 0:01:44.7]} 13... exd4 {[%clk 0:01:30.9]} 14.
Nxd4 {[%clk 0:01:38]} 14... Nxd4 {[%clk 0:01:25.2]} 15. cxd4 {[%clk 0:01:38.4]}
15... f5 {[%clk 0:01:25.8]} 16. Bh4 {[%clk 0:01:31.2]} 16... Qd7 {[%clk
0:01:21.3]} 17. Bxe7 {[%clk 0:01:27.3]} 17... Qxe7 {[%clk 0:01:19]} 18. exf5
{[%clk 0:01:27.1]} 18... Qh4 {[%clk 0:00:56.8]} 19. Re4 {[%clk 0:01:20]} 19...
Qg5 {[%clk 0:00:48.9]} 20. g4 {[%clk 0:00:57.1]} 20... gxf5 {[%clk 0:00:48.3]}
21. Nf3 {[%clk 0:00:56.9]} 21... Qg6 {[%clk 0:00:42.9]} 22. Re6 {[%clk
0:00:55.8]} 22... Rf6 {[%clk 0:00:38.1]} 23. Nh4 {[%clk 0:00:32.2]} 23... Qg5
{[%clk 0:00:36.8]} 24. Rxf6 {[%clk 0:00:31.1]} 24... Bxf6 {[%clk 0:00:25.1]} 25.
Nxf5 {[%clk 0:00:31.2]} 25... Bg6 {[%clk 0:00:20.8]} 26. Qd3 {[%clk 0:00:20.6]}
26... Rf8 {[%clk 0:00:18.3]} 27. Re1 {[%clk 0:00:18]} 27... c6 {[%clk
0:00:17.4]} 28. Re6 {[%clk 0:00:16.7]} 28... d5 {[%clk 0:00:15.9]} 29. Bb3
{[%clk 0:00:16.8]} 29... Bg7 {[%clk 0:00:13.2]} 30. Kf1 {[%clk 0:00:10.5]} 30...
Bxf5 {[%clk 0:00:13]} 31. gxf5 {[%clk 0:00:10.6]} 31... Qxf5 {[%clk 0:00:11.9]}
32. Qxf5 {[%clk 0:00:10.3]} 32... Rxf5 {[%clk 0:00:11.9]} 33. Bc2 {[%clk
0:00:10.6]} 33... Rf7 {[%clk 0:00:09.4]} 34. Re8+ {[%clk 0:00:10]} 34... Bf8
{[%clk 0:00:09.7]} 35. Ke2 {[%clk 0:00:08.5]} 35... Kg7 {[%clk 0:00:09.5]} 36.
f3 {[%clk 0:00:08.2]} 36... Re7+ {[%clk 0:00:07.6]} 37. Rxe7+ {[%clk 0:00:08.5]}
37... Bxe7 {[%clk 0:00:08.5]} 38. Bf5 {[%clk 0:00:08.4]} 38... b6 {[%clk
0:00:06.8]} 39. a4 {[%clk 0:00:08]} 39... c5 {[%clk 0:00:07.1]} 40. Be6 {[%clk
0:00:07.2]} 40... cxd4 {[%clk 0:00:06.5]} 41. Kd3 {[%clk 0:00:07.4]} 41... Bc5
{[%clk 0:00:05.9]} 42. Bxd5 {[%clk 0:00:08]} 42... a5 {[%clk 0:00:06.2]} 43. Be4
{[%clk 0:00:08.1]} 43... Kf6 {[%clk 0:00:07]} 44. Bxh7 {[%clk 0:00:08.4]} 44...
Kg5 {[%clk 0:00:07.4]} 45. Bg8 {[%clk 0:00:08.4]} 45... Kf4 {[%clk 0:00:06.2]}
46. Ke2 {[%clk 0:00:08]} 46... Be7 {[%clk 0:00:05.1]} 47. Be6 {[%clk 0:00:07.4]}
47... Bf6 {[%clk 0:00:05.1]} 48. b3 {[%clk 0:00:07.7]} 48... Bh4 {[%clk
0:00:04.7]} 49. Bg4 {[%clk 0:00:07.1]} 49... Bf6 {[%clk 0:00:04.7]} 50. Kd3
{[%clk 0:00:07.6]} 50... Ke5 {[%clk 0:00:03.9]} 51. Bd7 {[%clk 0:00:06.9]} 51...
Be7 {[%clk 0:00:03.9]} 52. Bg4 {[%clk 0:00:06.8]} 52... Bf6 {[%clk 0:00:02.2]}
53. Bh5 {[%clk 0:00:07.3]} 53... Be7 {[%clk 0:00:02.9]} 54. Bg6 {[%clk
0:00:07.6]} 54... Bf6 {[%clk 0:00:03.6]} 55. Kc4 {[%clk 0:00:07.7]} 55... Be7
{[%clk 0:00:04.5]} 56. Kb5 {[%clk 0:00:08]} 56... Bc5 {[%clk 0:00:05]} 57. Kc6
{[%clk 0:00:08.5]} 57... Kf4 {[%clk 0:00:04.9]} 58. Be4 {[%clk 0:00:07.7]} 58...
Kg3 {[%clk 0:00:05]} 59. h4 {[%clk 0:00:05.7]} 59... Kxh4 {[%clk 0:00:05.3]} 60.
f4 {[%clk 0:00:06.1]} 60... Kg4 {[%clk 0:00:05.5]} 61. f5 {[%clk 0:00:06.7]}
61... Kf4 {[%clk 0:00:06]} 62. Bb1 {[%clk 0:00:05.4]} 62... Ke3 {[%clk
0:00:06.4]} 63. f6 {[%clk 0:00:05.7]} 63... d3 {[%clk 0:00:06.9]} 64. f7 {[%clk
0:00:04.1]} 64... d2 {[%clk 0:00:06.9]} 65. Bc2 {[%clk 0:00:04.1]} 65... Ke2
{[%clk 0:00:07.2]} 66. f8=Q {[%clk 0:00:03]} 66... Bxf8 {[%clk 0:00:06.5]} 67.
Kxb6 {[%clk 0:00:03.6]} 67... Bb4 {[%clk 0:00:04.7]} 68. Kb5 {[%clk 0:00:03.7]}
68... d1=Q {[%clk 0:00:05]} 69. Bxd1+ {[%clk 0:00:04]} 69... Kxd1 {[%clk
0:00:05.9]} 70. Kc4 {[%clk 0:00:04.2]} 70... Kd2 {[%clk 0:00:06.8]} 71. Kd4
{[%clk 0:00:04]} 71... Kc2 {[%clk 0:00:07.1]} 72. Kc4 {[%clk 0:00:04.4]} 72...
Kb2 {[%clk 0:00:07.7]} 73. Kd3 {[%clk 0:00:05]} 73... Kxb3 {[%clk 0:00:08.6]}
74. Ke2 {[%clk 0:00:05.6]} 74... Kxa4 {[%clk 0:00:09.5]} 75. Kd1 {[%clk
0:00:06.1]} 75... Kb3 {[%clk 0:00:10.4]} 76. Kc1 {[%clk 0:00:06.9]} 76... a4
{[%clk 0:00:11.3]} 77. Kb1 {[%clk 0:00:07.6]} 77... a3 {[%clk 0:00:12.1]} 78.
Ka1 {[%clk 0:00:08.1]} 78... Bc3+ {[%clk 0:00:11.9]} 79. Kb1 {[%clk 0:00:08.9]}
79... a2+ {[%clk 0:00:12.8]} 80. Kc1 {[%clk 0:00:09.7]} 80... a1=Q# {[%clk
0:00:13.7]} 0-1

[Event "*** Titled Tuesday Blitz"]
[Site "Chess.com"]
[Date "2020.05.26"]
[Round "2"]
[White "GMStefanova"]
[Black "archess2"]
[Result "1/2-1/2"]
[WhiteElo "2619"]
[BlackElo "2262"]
[TimeControl "180+1"]
[EndTime "10:19:50 PDT"]
[Termination "Game drawn by 50-move rule"]

1. Nf3 {[%clk 0:03:00.9]} 1... d5 {[%clk 0:02:59.5]} 2. g3 {[%clk 0:03:00.8]}
2... c6 {[%clk 0:02:56.1]} 3. Bg2 {[%clk 0:03:00.5]} 3... Nf6 {[%clk 0:02:54.9]}
4. O-O {[%clk 0:03:00.3]} 4... Bf5 {[%clk 0:02:53.9]} 5. d3 {[%clk 0:02:57.9]}
5... h6 {[%clk 0:02:53.5]} 6. c4 {[%clk 0:02:51.8]} 6... e6 {[%clk 0:02:53.1]}
7. cxd5 {[%clk 0:02:50.4]} 7... cxd5 {[%clk 0:02:48.6]} 8. Nd4 {[%clk 0:02:49]}
8... Bh7 {[%clk 0:02:47.9]} 9. Qb3 {[%clk 0:02:42.1]} 9... Qb6 {[%clk
0:02:44.9]} 10. Qxb6 {[%clk 0:02:40.2]} 10... axb6 {[%clk 0:02:43.4]} 11. Nb5
{[%clk 0:02:39.6]} 11... Kd7 {[%clk 0:02:37.7]} 12. N1c3 {[%clk 0:02:38.6]}
12... Nc6 {[%clk 0:02:37]} 13. e4 {[%clk 0:02:20.5]} 13... d4 {[%clk 0:02:33.6]}
14. Ne2 {[%clk 0:02:19.4]} 14... Bc5 {[%clk 0:02:31.8]} 15. Bd2 {[%clk
0:02:15.3]} 15... Bg6 {[%clk 0:02:07.7]} 16. a3 {[%clk 0:02:04.8]} 16... e5
{[%clk 0:02:03.3]} 17. b4 {[%clk 0:01:57.3]} 17... Be7 {[%clk 0:02:03]} 18. h3
{[%clk 0:01:50.4]} 18... Na7 {[%clk 0:02:01.9]} 19. Nxa7 {[%clk 0:01:44.8]}
19... Rxa7 {[%clk 0:02:01.9]} 20. f4 {[%clk 0:01:43.4]} 20... Bh5 {[%clk
0:01:47.7]} 21. g4 {[%clk 0:01:41.9]} 21... Nxg4 {[%clk 0:01:47.8]} 22. hxg4
{[%clk 0:01:40.7]} 22... Bxg4 {[%clk 0:01:48]} 23. Bf3 {[%clk 0:01:22.3]} 23...
Bh3 {[%clk 0:01:44.4]} 24. Rfc1 {[%clk 0:01:18.6]} 24... Rha8 {[%clk 0:01:39]}
25. fxe5 {[%clk 0:01:18.2]} 25... Rxa3 {[%clk 0:01:38.6]} 26. Rxa3 {[%clk
0:01:18]} 26... Rxa3 {[%clk 0:01:38.4]} 27. Nf4 {[%clk 0:01:11.7]} 27... Bg5
{[%clk 0:01:33.1]} 28. Rc4 {[%clk 0:01:06.5]} 28... Bxf4 {[%clk 0:01:24.3]} 29.
Rxd4+ {[%clk 0:01:06.2]} 29... Kc6 {[%clk 0:01:22.8]} 30. Bxf4 {[%clk
0:01:06.7]} 30... g5 {[%clk 0:01:22.8]} 31. Bg3 {[%clk 0:01:05]} 31... g4 {[%clk
0:01:22.9]} 32. Be2 {[%clk 0:01:03.2]} 32... Ra2 {[%clk 0:01:22.9]} 33. Kf2
{[%clk 0:01:02.7]} 33... h5 {[%clk 0:01:20.5]} 34. Rd6+ {[%clk 0:01:02.6]} 34...
Kb5 {[%clk 0:01:20.2]} 35. d4+ {[%clk 0:01:02.2]} 35... Kxb4 {[%clk 0:01:19.5]}
36. Rxb6+ {[%clk 0:01:02.1]} 36... Kc3 {[%clk 0:01:19.7]} 37. d5 {[%clk
0:01:00.7]} 37... h4 {[%clk 0:01:17.3]} 38. Bxh4 {[%clk 0:00:59.8]} 38... g3+
{[%clk 0:01:17.2]} 39. Kxg3 {[%clk 0:00:57.2]} 39... Rxe2 {[%clk 0:01:16.6]} 40.
Kxh3 {[%clk 0:00:56.9]} 40... Re3+ {[%clk 0:01:15.7]} 41. Bg3 {[%clk 0:00:54.6]}
41... Rxe4 {[%clk 0:01:14.3]} 42. e6 {[%clk 0:00:53.3]} 42... fxe6 {[%clk
0:01:12.5]} 43. dxe6 {[%clk 0:00:53.4]} 43... Kc4 {[%clk 0:01:10.2]} 44. Bf2
{[%clk 0:00:47.6]} 44... Kd5 {[%clk 0:01:06.5]} 45. Rxb7 {[%clk 0:00:46.8]}
45... Rxe6 {[%clk 0:01:04.6]} 46. Kg4 {[%clk 0:00:46.9]} 46... Rf6 {[%clk
0:01:01.4]} 47. Bg3 {[%clk 0:00:46.8]} 47... Rg6+ {[%clk 0:00:59.4]} 48. Kf3
{[%clk 0:00:46.4]} 48... Ke6 {[%clk 0:00:58.3]} 49. Bf4 {[%clk 0:00:46]} 49...
Kf5 {[%clk 0:00:56.4]} 50. Rb5+ {[%clk 0:00:45.4]} 50... Ke6 {[%clk 0:00:56.5]}
51. Ke4 {[%clk 0:00:46.1]} 51... Kf6 {[%clk 0:00:51]} 52. Rb6+ {[%clk
0:00:45.1]} 52... Kf7 {[%clk 0:00:51.2]} 53. Rb7+ {[%clk 0:00:45]} 53... Ke6
{[%clk 0:00:51.4]} 54. Ra7 {[%clk 0:00:44.6]} 54... Rf6 {[%clk 0:00:47.3]} 55.
Be5 {[%clk 0:00:43.1]} 55... Rg6 {[%clk 0:00:46.7]} 56. Ra6+ {[%clk 0:00:39.7]}
56... Kf7 {[%clk 0:00:46.5]} 57. Ra8 {[%clk 0:00:39.2]} 57... Ke6 {[%clk
0:00:45.7]} 58. Re8+ {[%clk 0:00:38.2]} 58... Kf7 {[%clk 0:00:45.4]} 59. Rh8
{[%clk 0:00:37.7]} 59... Ke6 {[%clk 0:00:45.2]} 60. Bf4 {[%clk 0:00:37.7]} 60...
Rf6 {[%clk 0:00:41.3]} 61. Be3 {[%clk 0:00:36.5]} 61... Rg6 {[%clk 0:00:41.3]}
62. Bd4 {[%clk 0:00:36.4]} 62... Rg4+ {[%clk 0:00:41.4]} 63. Kd3 {[%clk
0:00:36.4]} 63... Rg6 {[%clk 0:00:41]} 64. Kc4 {[%clk 0:00:36]} 64... Rg4 {[%clk
0:00:40.5]} 65. Re8+ {[%clk 0:00:35.4]} 65... Kd7 {[%clk 0:00:39.5]} 66. Re1
{[%clk 0:00:34.4]} 66... Rf4 {[%clk 0:00:38.5]} 67. Rh1 {[%clk 0:00:34.2]} 67...
Rf7 {[%clk 0:00:38.3]} 68. Rh5 {[%clk 0:00:32.8]} 68... Ke6 {[%clk 0:00:37.4]}
69. Rh6+ {[%clk 0:00:32.3]} 69... Kd7 {[%clk 0:00:37.7]} 70. Kd5 {[%clk
0:00:31.6]} 70... Rf5+ {[%clk 0:00:38]} 71. Be5 {[%clk 0:00:31.4]} 71... Rf7
{[%clk 0:00:38.3]} 72. Ra6 {[%clk 0:00:30.1]} 72... Re7 {[%clk 0:00:38.3]} 73.
Bf6 {[%clk 0:00:28.7]} 73... Rf7 {[%clk 0:00:37.9]} 74. Ke5 {[%clk 0:00:28.6]}
74... Ke8 {[%clk 0:00:35]} 75. Ke6 {[%clk 0:00:27.7]} 75... Re7+ {[%clk
0:00:35.4]} 76. Kf5 {[%clk 0:00:26.9]} 76... Rf7 {[%clk 0:00:34.3]} 77. Kg6
{[%clk 0:00:26.7]} 77... Rb7 {[%clk 0:00:34.4]} 78. Ra8+ {[%clk 0:00:25.3]}
78... Kd7 {[%clk 0:00:34.7]} 79. Kf5 {[%clk 0:00:25.4]} 79... Rc7 {[%clk
0:00:34.7]} 80. Be5 {[%clk 0:00:25.2]} 80... Rb7 {[%clk 0:00:35.1]} 81. Ra6
{[%clk 0:00:24.5]} 81... Ke7 {[%clk 0:00:33.8]} 82. Rh6 {[%clk 0:00:23.8]} 82...
Kd7 {[%clk 0:00:33.8]} 83. Rd6+ {[%clk 0:00:22.7]} 83... Ke7 {[%clk 0:00:33.9]}
84. Rh6 {[%clk 0:00:22.4]} 84... Kd7 {[%clk 0:00:34.2]} 85. Ke4 {[%clk
0:00:22.6]} 85... Rb4+ {[%clk 0:00:33.3]} 86. Bd4 {[%clk 0:00:22.5]} 86... Rb7
{[%clk 0:00:32.8]} 87. Kd5 {[%clk 0:00:22.3]} 87... Rc7 {[%clk 0:00:33]} 88. Bc5
{[%clk 0:00:21.9]} 88... Rb7 {[%clk 0:00:33.1]} 89. Re6 {[%clk 0:00:20.6]} 89...
Kc8 {[%clk 0:00:31.6]} 90. Re8+ {[%clk 0:00:19.3]} 90... Kd7 {[%clk 0:00:31.9]}
91. Rh8 {[%clk 0:00:18]} 91... Rc7 {[%clk 0:00:32]} 92. Bd6 {[%clk 0:00:16.7]}
92... Rb7 {[%clk 0:00:31]} 93. Rh7+ {[%clk 0:00:14]} 93... Kc8 {[%clk
0:00:31.3]} 94. Rh2 {[%clk 0:00:13.7]} 94... Kd7 {[%clk 0:00:31.4]} 95. Rh7+
{[%clk 0:00:13.5]} 95... Kc8 {[%clk 0:00:31.6]} 1/2-1/2

[Event "*** Titled Tuesday Blitz"]
[Site "Chess.com"]
[Date "2020.05.26"]
[Round "3"]
[White "XDPS"]
[Black "luizwas"]
[Result "1-0"]
[WhiteElo "2699"]
[BlackElo "1831"]
[TimeControl "180+1"]
[EndTime "10:22:05 PDT"]
[Termination "XDPS won by resignation"]

1. d4 {[%clk 0:03:00.9]} 1... e6 {[%clk 0:03:00]} 2. Bf4 {[%clk 0:03:00.8]} 2...
f5 {[%clk 0:03:00]} 3. e3 {[%clk 0:03:00.4]} 3... Nf6 {[%clk 0:03:00.3]} 4. h3
{[%clk 0:02:57.3]} 4... d5 {[%clk 0:03:00.5]} 5. Nf3 {[%clk 0:02:57.1]} 5... c6
{[%clk 0:02:58.5]} 6. Nbd2 {[%clk 0:02:55.5]} 6... Bd6 {[%clk 0:02:58.8]} 7. Ne5
{[%clk 0:02:54.5]} 7... O-O {[%clk 0:02:57.9]} 8. c3 {[%clk 0:02:54.4]} 8... Ne4
{[%clk 0:02:49.9]} 9. Qc2 {[%clk 0:02:44.2]} 9... Bxe5 {[%clk 0:02:47.9]} 10.
Bxe5 {[%clk 0:02:43.6]} 10... Nd7 {[%clk 0:02:48.5]} 11. Bh2 {[%clk 0:02:43.1]}
11... Ndf6 {[%clk 0:02:48.4]} 12. Nf3 {[%clk 0:02:42]} 12... b6 {[%clk
0:02:40.1]} 13. Ne5 {[%clk 0:02:41.1]} 13... Nd7 {[%clk 0:02:36.1]} 14. Nxc6
{[%clk 0:02:36.7]} 14... Qc7 {[%clk 0:02:32.2]} 15. Bxc7 {[%clk 0:02:35.4]} 1-0

[Event "*** Titled Tuesday Blitz"]
[Site "Chess.com"]
[Date "2020.05.26"]
[Round "3"]
[White "1f3_2g41-0"]
[Black "pedro_nascimento85"]
[Result "1-0"]
[WhiteElo "2252"]
[BlackElo "1859"]
[TimeControl "180+1"]
[EndTime "10:23:04 PDT"]
[Termination "1f3_2g41-0 won by resignation"]

1. e4 {[%clk 0:03:00.9]} 1... e6 {[%clk 0:02:59.4]} 2. d4 {[%clk 0:02:59.8]}
2... d5 {[%clk 0:02:59.2]} 3. Nc3 {[%clk 0:02:59.9]} 3... Bb4 {[%clk 0:02:57.6]}
4. exd5 {[%clk 0:03:00.1]} 4... exd5 {[%clk 0:02:57.1]} 5. Bd3 {[%clk
0:02:59.4]} 5... Ne7 {[%clk 0:02:57.4]} 6. Nf3 {[%clk 0:02:59]} 6... Bg4 {[%clk
0:02:49.3]} 7. O-O {[%clk 0:02:58.6]} 7... h6 {[%clk 0:02:49.8]} 8. h3 {[%clk
0:02:45.9]} 8... Bh5 {[%clk 0:02:47.7]} 9. a3 {[%clk 0:02:41.7]} 9... Bxc3
{[%clk 0:02:47.2]} 10. bxc3 {[%clk 0:02:42.6]} 10... Nbc6 {[%clk 0:02:46.3]} 11.
Re1 {[%clk 0:02:42.2]} 11... O-O {[%clk 0:02:45.4]} 12. Bf4 {[%clk 0:02:38.5]}
12... Qd7 {[%clk 0:02:32.4]} 13. Ne5 {[%clk 0:02:19.1]} 13... Nxe5 {[%clk
0:02:28.8]} 14. Qxh5 {[%clk 0:02:18.1]} 14... Nxd3 {[%clk 0:02:27.9]} 15. cxd3
{[%clk 0:02:19]} 15... Ng6 {[%clk 0:02:24.9]} 16. Bd2 {[%clk 0:02:15.6]} 16...
Rfe8 {[%clk 0:02:21.5]} 17. Re3 {[%clk 0:02:14.3]} 17... Rxe3 {[%clk 0:02:20.3]}
18. fxe3 {[%clk 0:02:15.2]} 18... Re8 {[%clk 0:02:20.6]} 19. Rf1 {[%clk
0:02:15.6]} 19... Qe7 {[%clk 0:02:15.5]} 20. Qxd5 {[%clk 0:02:14.4]} 20... Qxa3
{[%clk 0:02:14.2]} 21. Qxf7+ {[%clk 0:02:13.4]} 1-0

[Event "*** Titled Tuesday Blitz"]
[Site "Chess.com"]
[Date "2020.05.26"]
[Round "3"]
[White "MacDaddyMac"]
[Black "XxPetroffsxX"]
[Result "1-0"]
[WhiteElo "2261"]
[BlackElo "1916"]
[TimeControl "180+1"]
[EndTime "10:23:13 PDT"]
[Termination "MacDaddyMac won by resignation"]

1. e4 {[%clk 0:03:00.9]} 1... e5 {[%clk 0:02:57.3]} 2. Nf3 {[%clk 0:03:00.4]}
2... Nc6 {[%clk 0:02:57.5]} 3. Bb5 {[%clk 0:03:00.1]} 3... Nf6 {[%clk
0:02:57.3]} 4. Nc3 {[%clk 0:02:59.8]} 4... Bb4 {[%clk 0:02:55.9]} 5. O-O {[%clk
0:02:54.2]} 5... d6 {[%clk 0:02:54.2]} 6. d4 {[%clk 0:02:52.1]} 6... exd4 {[%clk
0:02:52.9]} 7. Nxd4 {[%clk 0:02:51.5]} 7... Bd7 {[%clk 0:02:52.6]} 8. Nxc6
{[%clk 0:02:50.7]} 8... bxc6 {[%clk 0:02:52.2]} 9. Bd3 {[%clk 0:02:49.9]} 9...
O-O {[%clk 0:02:51.9]} 10. Bg5 {[%clk 0:02:49]} 10... h6 {[%clk 0:02:50.3]} 11.
Bh4 {[%clk 0:02:48.8]} 11... Bxc3 {[%clk 0:02:49.4]} 12. bxc3 {[%clk 0:02:48.6]}
12... Qe7 {[%clk 0:02:47.4]} 13. Qf3 {[%clk 0:02:46.6]} 13... g5 {[%clk
0:02:45.6]} 14. Bg3 {[%clk 0:02:45.7]} 14... Rab8 {[%clk 0:02:38]} 15. h4 {[%clk
0:02:44.9]} 15... g4 {[%clk 0:02:36.6]} 16. Qf4 {[%clk 0:02:43.3]} 16... Kh7
{[%clk 0:02:33.1]} 17. e5+ {[%clk 0:02:41.1]} 17... Kg7 {[%clk 0:02:25.5]} 18.
exf6+ {[%clk 0:02:42]} 18... Qxf6 {[%clk 0:02:25.6]} 19. Qxf6+ {[%clk
0:02:42.1]} 19... Kxf6 {[%clk 0:02:25.9]} 20. Rab1 {[%clk 0:02:42.8]} 20... Rb6
{[%clk 0:02:24.3]} 21. f3 {[%clk 0:02:36.8]} 21... gxf3 {[%clk 0:02:19.4]} 22.
Rxf3+ {[%clk 0:02:35.7]} 22... Kg7 {[%clk 0:02:19.7]} 23. Rbf1 {[%clk
0:02:32.9]} 23... Be6 {[%clk 0:02:18.3]} 24. Bf2 {[%clk 0:02:32.7]} 24... Rb2
{[%clk 0:02:14.8]} 25. Bd4+ {[%clk 0:02:32.4]} 25... f6 {[%clk 0:02:11.4]} 26.
Rxf6 {[%clk 0:02:30.3]} 1-0

[Event "*** Titled Tuesday Blitz"]
[Site "Chess.com"]
[Date "2020.05.26"]
[Round "3"]
[White "Jadeit90"]
[Black "SaraciNderim"]
[Result "0-1"]
[WhiteElo "2315"]
[BlackElo "2783"]
[TimeControl "180+1"]
[EndTime "10:23:37 PDT"]
[Termination "SaraciNderim won by resignation"]

1. g3 {[%clk 0:03:00.9]} 1... b6 {[%clk 0:02:58]} 2. Bg2 {[%clk 0:03:01.8]} 2...
d5 {[%clk 0:02:56.9]} 3. c4 {[%clk 0:03:01.8]} 3... e6 {[%clk 0:02:56.1]} 4.
cxd5 {[%clk 0:03:02.2]} 4... exd5 {[%clk 0:02:57]} 5. Nf3 {[%clk 0:03:02.7]}
5... Nf6 {[%clk 0:02:57.3]} 6. O-O {[%clk 0:03:03.6]} 6... Be7 {[%clk
0:02:57.3]} 7. d4 {[%clk 0:03:04.3]} 7... O-O {[%clk 0:02:57.4]} 8. Nc3 {[%clk
0:03:04.7]} 8... Bb7 {[%clk 0:02:57.4]} 9. Bf4 {[%clk 0:03:03.5]} 9... Nbd7
{[%clk 0:02:57.2]} 10. Rc1 {[%clk 0:03:03.3]} 10... a6 {[%clk 0:02:56.5]} 11.
Ne5 {[%clk 0:03:02.9]} 11... c5 {[%clk 0:02:54.9]} 12. Nxd7 {[%clk 0:03:02.1]}
12... Qxd7 {[%clk 0:02:51.9]} 13. Be5 {[%clk 0:03:01.9]} 13... c4 {[%clk
0:02:50.3]} 14. b3 {[%clk 0:02:58.9]} 14... b5 {[%clk 0:02:49.2]} 15. bxc4
{[%clk 0:02:58.9]} 15... dxc4 {[%clk 0:02:50.1]} 16. Bxb7 {[%clk 0:02:49.1]}
16... Qxb7 {[%clk 0:02:51]} 17. Bxf6 {[%clk 0:02:44.2]} 17... Bxf6 {[%clk
0:02:50.8]} 18. e3 {[%clk 0:02:44.4]} 18... Rac8 {[%clk 0:02:47.5]} 19. Qc2
{[%clk 0:02:43.4]} 19... Be7 {[%clk 0:02:45.1]} 20. e4 {[%clk 0:02:40]} 20... b4
{[%clk 0:02:44.7]} 21. Nd5 {[%clk 0:02:40.3]} 21... Rfd8 {[%clk 0:02:42.5]} 22.
Rfd1 {[%clk 0:02:38.9]} 22... a5 {[%clk 0:02:40.7]} 23. Nxe7+ {[%clk 0:02:34.7]}
23... Qxe7 {[%clk 0:02:39.7]} 24. d5 {[%clk 0:02:35.6]} 24... Qc5 {[%clk
0:02:38.5]} 25. Qe2 {[%clk 0:02:33.4]} 25... a4 {[%clk 0:02:35.8]} 26. Qg4
{[%clk 0:02:24.6]} 26... b3 {[%clk 0:02:32.7]} 27. axb3 {[%clk 0:02:23.9]} 27...
axb3 {[%clk 0:02:33.6]} 28. e5 {[%clk 0:02:24.3]} 28... b2 {[%clk 0:02:31]} 29.
Rb1 {[%clk 0:02:23]} 29... c3 {[%clk 0:02:30.9]} 30. e6 {[%clk 0:02:23.3]} 30...
c2 {[%clk 0:02:22]} 31. exf7+ {[%clk 0:02:23]} 31... Kf8 {[%clk 0:02:16.1]} 32.
Rxb2 {[%clk 0:02:20.9]} 32... cxd1=Q+ {[%clk 0:02:13.6]} 33. Qxd1 {[%clk
0:02:21.8]} 33... Qc1 {[%clk 0:02:13.2]} 0-1

[Event "*** Titled Tuesday Blitz"]
[Site "Chess.com"]
[Date "2020.05.26"]
[Round "3"]
[White "gliglu"]
[Black "tgpgoat"]
[Result "1-0"]
[WhiteElo "2372"]
[BlackElo "2067"]
[TimeControl "180+1"]
[EndTime "10:23:51 PDT"]
[Termination "gliglu won by resignation"]

1. d4 {[%clk 0:03:00.9]} 1... Nf6 {[%clk 0:02:54.7]} 2. c4 {[%clk 0:03:00.4]}
2... c5 {[%clk 0:02:51.3]} 3. d5 {[%clk 0:02:57.1]} 3... b5 {[%clk 0:02:51.3]}
4. cxb5 {[%clk 0:02:57]} 4... a6 {[%clk 0:02:51.2]} 5. e3 {[%clk 0:02:56.9]}
5... axb5 {[%clk 0:02:44.2]} 6. Bxb5 {[%clk 0:02:56.3]} 6... Ba6 {[%clk
0:02:45.1]} 7. Bxa6 {[%clk 0:02:54.5]} 7... Nxa6 {[%clk 0:02:46]} 8. Nf3 {[%clk
0:02:54.4]} 8... d6 {[%clk 0:02:45.8]} 9. O-O {[%clk 0:02:54.2]} 9... g6 {[%clk
0:02:45.9]} 10. Nc3 {[%clk 0:02:54.1]} 10... Bg7 {[%clk 0:02:46]} 11. e4 {[%clk
0:02:44.1]} 11... O-O {[%clk 0:02:43]} 12. Bf4 {[%clk 0:02:43.9]} 12... Nd7
{[%clk 0:02:43]} 13. Qe2 {[%clk 0:02:41]} 13... Qb6 {[%clk 0:02:42.4]} 14. a4
{[%clk 0:02:37.1]} 14... Rfb8 {[%clk 0:02:39.9]} 15. Nb5 {[%clk 0:02:36.5]}
15... Nb4 {[%clk 0:02:40.5]} 16. Rfd1 {[%clk 0:02:30.9]} 16... Ra5 {[%clk
0:02:15]} 17. e5 {[%clk 0:02:28.2]} 17... Qa6 {[%clk 0:02:13.4]} 18. exd6 {[%clk
0:02:06.4]} 18... exd6 {[%clk 0:02:13.1]} 19. Qe7 {[%clk 0:02:06.1]} 19... Rb7
{[%clk 0:01:55.3]} 20. Nxd6 {[%clk 0:02:00.7]} 20... Bf8 {[%clk 0:01:52.3]} 21.
Qxf7+ {[%clk 0:01:59.8]} 21... Kh8 {[%clk 0:01:51.8]} 22. Nxb7 {[%clk
0:01:52.3]} 22... Qxb7 {[%clk 0:01:50.6]} 23. Be5+ {[%clk 0:01:50.5]} 1-0

[Event "*** Titled Tuesday Blitz"]
[Site "Chess.com"]
[Date "2020.05.26"]
[Round "3"]
[White "Nafania1"]
[Black "kingofkolkata"]
[Result "1-0"]
[WhiteElo "2441"]
[BlackElo "2204"]
[TimeControl "180+1"]
[EndTime "10:23:51 PDT"]
[Termination "Nafania1 won by resignation"]

1. e4 {[%clk 0:03:00.9]} 1... e5 {[%clk 0:02:59.7]} 2. Nf3 {[%clk 0:03:00.7]}
2... Nc6 {[%clk 0:02:56.8]} 3. Bb5 {[%clk 0:03:00.7]} 3... a6 {[%clk 0:02:49.1]}
4. Ba4 {[%clk 0:03:00.7]} 4... Nf6 {[%clk 0:02:48.5]} 5. O-O {[%clk 0:03:00.7]}
5... Be7 {[%clk 0:02:48.4]} 6. Re1 {[%clk 0:03:00.3]} 6... b5 {[%clk 0:02:48.7]}
7. Bb3 {[%clk 0:03:00.6]} 7... d6 {[%clk 0:02:49.6]} 8. c3 {[%clk 0:03:00.9]}
8... O-O {[%clk 0:02:48.4]} 9. d4 {[%clk 0:03:01.1]} 9... Bg4 {[%clk 0:02:48.2]}
10. Be3 {[%clk 0:03:00.4]} 10... exd4 {[%clk 0:02:47.9]} 11. cxd4 {[%clk
0:03:00.3]} 11... Na5 {[%clk 0:02:48.8]} 12. h3 {[%clk 0:02:58.7]} 12... Bxf3
{[%clk 0:02:47.9]} 13. Qxf3 {[%clk 0:02:57.1]} 13... Nxb3 {[%clk 0:02:46.9]} 14.
axb3 {[%clk 0:02:57]} 14... c5 {[%clk 0:02:47.8]} 15. dxc5 {[%clk 0:02:36.7]}
15... dxc5 {[%clk 0:02:45.6]} 16. Nc3 {[%clk 0:02:31.4]} 16... Qd7 {[%clk
0:02:26.1]} 17. e5 {[%clk 0:02:26.8]} 17... b4 {[%clk 0:02:15.3]} 18. exf6
{[%clk 0:02:24]} 18... Bxf6 {[%clk 0:02:16.2]} 19. Nd5 {[%clk 0:02:16.5]} 19...
Bxb2 {[%clk 0:02:15.3]} 20. Rad1 {[%clk 0:02:15.9]} 20... Qa7 {[%clk 0:02:03.4]}
21. Qe2 {[%clk 0:01:45.1]} 21... Rfe8 {[%clk 0:01:59.6]} 22. Qxb2 {[%clk
0:01:43.9]} 1-0